Cogmind - Beta 13 *** ADVENTURER MODE // 2024.04.04 @ 17:02:07 Player: ()val()s Result: Destroyed by H-55 Commando with Assault Rifle Performance ------------- Evolutions (3) 1500 Regions Visited (5) 1000 Robots Destroyed (19) 95 Value Destroyed (461) 461 Prototype IDs (1) 20 Alien Tech Used (0) 0 Bonus (0) 0 TOTAL SCORE: 3076 Bonus ------- None Cogmind --------- Core Integrity 0/700 Matter 209/300 Energy 100/100 System Corruption 6% Temperature Cool (0) Movement Core (50) Location -7/Factory Parts ------- > --- POWER (1) -------- (None) > --- PROPULSION (4) --- (None) > --- UTILITY (6) ------ Improved Terrain Scan Processor > --- WEAPON (2) ------- (None) > --- INVENTORY (5) ---- Aluminum Leg Improved Carbon-fiber Leg Peak State ------------ > --- POWER ------------ Light Nuclear Core > --- PROPULSION ------- Gravmag System Improved Airjet Improved Airjet > --- UTILITY ---------- Heat Sink Signal Interpreter Improved Terrain Scanner Propulsion Shielding Medium Reactive Plating Hacking Suite > --- WEAPON ----------- EM Pulse Cannon Gauss Rifle > --- INVENTORY -------- Improved Deuterium Engine Lightning Gun Spread Laser [Rating: 38] Favorites ----------- Power Light Ion Engine Engine Light Ion Engine Power Core Light Nuclear Core Propulsion Aluminum Leg Leg Aluminum Leg Hover Unit Improved Airjet Utility Improved Terrain Scanner Device Improved Terrain Scanner Processor Signal Interpreter Hackware Hacking Suite Protection Propulsion Shielding Weapon Assault Rifle Energy Gun Lightning Gun Energy Cannon EM Pulse Cannon Ballistic Gun Assault Rifle Special Melee Weapon Datajack Build | -11 -10 -9 -9 -8 -7 ------- Run | Yrd Mat Mat Min Mat Fac Slots Evolved 6 | . . 2 . 2 2 Power . | . . . . . . Propulsion 2 | . . . . . 2 Utility 4 | . . 2 . 2 . Weapon . | . . . . . . Parts Attached 37 | 7 1 6 1 6 16 Power 6 | 1 . 2 1 . 2 Engine 5 | 1 . 2 1 . 1 Core 1 | . . . . . 1 Reactor . | . . . . . . Propulsion 11 | 2 . . . 1 8 Treads . | . . . . . . Leg 5 | 2 . . . 1 2 Wheel . | . . . . . . Hover 6 | . . . . . 6 Flight . | . . . . . . Utility 10 | 2 . 2 . 3 3 Device 4 | 2 . . . 1 1 Storage . | . . . . . . Processor 2 | . . 1 . . 1 Hackware 1 | . . . . 1 . Protection 3 | . . 1 . 1 1 Artifact . | . . . . . . Weapon 10 | 2 1 2 . 2 3 Energy Gun 3 | . . . . . 3 Energy Cannon 3 | . 1 1 . 1 . Ballistic Gun 3 | 2 . . . 1 . Ballistic Cannon . | . . . . . . Launcher . | . . . . . . Special Weapon . | . . . . . . Impact Weapon . | . . . . . . Slashing Weapon . | . . . . . . Piercing Weapon . | . . . . . . Special Melee Weapon 1 | . . 1 . . . Unidentified Prototypes 1 | . . . . . 1 Parts Lost 15 | . . . 1 1 13 Power 1 | . . . . . 1 Propulsion 4 | . . . . . 4 Utility 7 | . . . . 1 6 Weapon 3 | . . . 1 . 2 Highest Loss Streak 5 | . . . 1 1 5 To Critical Strikes . | . . . . . . Average Slot Usage (%) 86 | . 100 100 88 95 73 Engine 7 | . 14 11 11 9 2 Core 1 | . . . . . 3 Leg 15 | . 28 22 22 18 7 Hover 4 | . . . . . 10 Device 19 | . 28 22 22 19 14 Processor 6 | . . 11 11 9 4 Hackware 3 | . . . . 6 6 Protection 10 | . . 11 11 18 10 Energy Gun 1 | . . . . . 3 Energy Cannon 6 | . 1 11 11 12 3 Ballistic Gun 5 | . 26 5 . 1 3 Special Melee Weapon 1 | . . 5 . . . Naked Turns . | . . . . . . Heaviest Build 38 | 9 10 15 15 21 38 Greatest Support 33 | 20 20 20 20 20 33 Greatest Overweight (x) 1 | . . . . 1 1 Average Overweight (x) . | . . . . . . Largest Inventory Capacity 5 | 5 5 5 5 5 5 Average Capacity 5 | 5 5 5 5 5 5 Most Carried 5 | 4 5 5 5 5 5 Average Carried 3 | 1 2 4 4 2 3 Final Capacity 5 | 5 5 5 5 5 5 Final Carried 5 | 2 4 5 5 4 2 Class Distribution -------------------- 50% | Mutant 31% | Hacker-Mutant 17% | Scavenger-Mutant Dominant Class ---------------- Mutant | -10/Materials Mutant | -9/Materials Mutant | -9/Mines Hacker-Mutant | -8/Materials Hacker-Mutant | -7/Factory Resources | -11 -10 -9 -9 -8 -7 ----------- Run | Yrd Mat Mat Min Mat Fac Matter Collected 486 | 312 30 63 10 71 . Remotely . | . . . . . . Salvage Created 570 | 118 60 14 112 111 155 Parts 41 | 13 9 2 9 5 3 Haulers Intercepted . | . . . . . . Recyclers Shooed . | . . . . . . Parts Field Recycled . | . . . . . . Retrieved Matter . | . . . . . . Parts Self-Destructed . | . . . . . . Prevented . | . . . . . . Kills | -11 -10 -9 -9 -8 -7 ------- Run | Yrd Mat Mat Min Mat Fac Combat Hostiles Destroyed 13 | . 2 . 6 2 3 Guns 3 | . 2 . . . 1 Cannons 7 | . . . 5 2 . AOE 2 | . . . 1 . 1 Classes Destroyed 6 | 2 2 1 1 . . Tunneler 3 | 3 . . . . . Recycler 1 | 1 . . . . . Operator 1 | . . 1 . . . Watcher 1 | . 1 . . . . Swarmer 7 | . 2 . 5 . . Grunt 6 | . . . 1 2 3 Best Kill Streak 3 | 3 2 1 3 2 3 Combat Bots Only 3 | . 2 . 3 2 3 Max Kills in Single Turn 1 | 1 1 1 1 1 1 Gunslinging . | . . . . . . Exploded 1 | . . . 1 . 1 Melee . | . . . . . . Uniques/NPCs Destroyed . | . . . . . . Combat | -11 -10 -9 -9 -8 -7 -------- Run | Yrd Mat Mat Min Mat Fac Hostile Shots Fired 367 | . 4 . 69 20 274 Missed 142 | . 1 . 34 10 97 Damage Taken 2171 | . 65 . 265 110 1731 Core 772 | . 24 . 43 . 705 Absorbed by Shields . | . . . . . . Redirected to Shielding 56 | . . . 30 5 21 Ignored by Resistances 697 | . 20 . 83 32 562 Regen/Repaired (Parts) 43 | . . . . . 43 Core Remaining (%) 94 | 100 90 . 89 100 . Volleys Fired 69 | 14 3 1 26 4 21 Largest 2 | 1 2 2 1 2 1 Hottest 91 | 20 40 80 68 91 65 Shots Fired 77 | 14 6 2 26 8 21 Gun 46 | 14 6 1 . 4 21 Cannon 31 | . . 1 26 4 . Launcher . | . . . . . . Special . | . . . . . . Kinetic 25 | 14 6 1 . 4 . Thermal 36 | . . 1 26 . 9 Explosive . | . . . . . . Electromagnetic 16 | . . . . 4 12 Robot Hit Streak 11 | 7 3 4 11 11 11 Robot Miss Streak 4 | 3 1 . 2 . 4 Penetration Max . | . . . . . . Secondary Targets . | . . . . . . Shots Hit Robots 61 | 9 3 6 19 6 18 Core Hits 32 | 4 3 1 7 4 13 Critical Kills . | . . . . . . Critical Parts Destroyed . | . . . . . . Critical Strikes . | . . . . . . Melee Attacks 5 | . . 5 . . . Impact . | . . . . . . Slashing . | . . . . . . Piercing . | . . . . . . Sneak Attacks 5 | . . 5 . . . Combat Hostiles . | . . . . . . Follow-up Attacks . | . . . . . . Damage Inflicted 1158 | 114 37 18 445 148 396 Guns 558 | 114 37 . . 41 366 Cannons 514 | . . 18 389 107 . Explosions 86 | . . . 56 . 30 Melee . | . . . . . . Ramming . | . . . . . . Kinetic 192 | 114 37 . . 41 . Thermal 670 | . . 18 445 . 207 Explosive . | . . . . . . Electromagnetic 296 | . . . . 107 189 Impact . | . . . . . . Slashing . | . . . . . . Piercing . | . . . . . . Highest Corruption 6 | . 2 . . . 6 Average Corruption 2 | . 2 . . . 3 Corruption Purged . | . . . . . . Corruption Blocked . | . . . . . . Effects 8 | . 4 . . . 4 Message Errors 1 | . 1 . . . . Matter Fused 3 | . 3 . . . . Heat Flow Errors 3 | . . . . . 3 Data Loss (minor) 1 | . . . . . 1 Overload Shots . | . . . . . . Overflow Damage 2 | . . . 2 . . Projectiles 2 | . . . 2 . . Explosions . | . . . . . . Melee . | . . . . . . Knockbacks . | . . . . . . Impact . | . . . . . . Kinetic . | . . . . . . Secondary . | . . . . . . Self-Inflicted Damage 149 | . . . . . 149 Shots 3 | . . . . . 3 Rammed 1 | . . . . . 1 Targets Rammed 1 | . . . . . 1 Kicked . | . . . . . . Crushed . | . . . . . . Highest Temperature 240 | . . 9 240 6 235 Average Temperature 79 | . . 6 90 4 68 Received Heat Transfer 600 | . . . 93 45 462 Siege Activations . | . . . . . . Robots Corrupted 1 | . . . . . 1 Combat Hostiles 1 | . . . . . 1 Parts Fried 2 | . . . . . 2 Impact Corruptions . | . . . . . . Robots Melted . | . . . . . . Combat Hostiles . | . . . . . . Parts Melted . | . . . . . . Heat Transferred 1040 | . . 37 753 . 250 Parts Sabotaged . | . . . . . . Parts Stolen . | . . . . . . Parts Stripped . | . . . . . . Power Chain Reactions 1 | . . . . . 1 Alert | -11 -10 -9 -9 -8 -7 ------- Run | Yrd Mat Mat Min Mat Fac Peak Influence 177 | 20 92 68 177 118 137 Initial 58 | . 11 33 . 58 45 Average 57 | 9 72 50 107 78 40 Maximum Alert Level . | . . . . . . Low Security (%) 100 | 100 100 100 100 100 100 Level 1 . | . . . . . . Level 2 . | . . . . . . Level 3 . | . . . . . . Level 4 . | . . . . . . Level 5 . | . . . . . . High Security . | . . . . . . Max Security . | . . . . . . Squads Dispatched 12 | . . 3 . 1 8 Investigation 3 | . . 1 . 1 1 Extermination 1 | . . . . . 1 Reinforcement 4 | . . 2 . . 2 Assault . | . . . . . . Garrison 4 | . . . . . 4 Intercept . | . . . . . . Searches Triggered . | . . . . . . Construction Impeded . | . . . . . . Haulers Reinforced . | . . . . . . Active Scanning Responses . | . . . . . . Cargo Convoy Interrupts . | . . . . . . Stealth | -11 -10 -9 -9 -8 -7 --------- Run | Yrd Mat Mat Min Mat Fac Distress Signals 6 | . 2 1 . 2 1 Communications Jammed . | . . . . . . Distress Signals . | . . . . . . Times Spotted 30 | . 6 2 8 5 9 Peak Tracking Total 4 | . 4 1 3 3 4 Tactical Retreats 3 | . . 1 . 1 1 Traps | -11 -10 -9 -9 -8 -7 ------- Run | Yrd Mat Mat Min Mat Fac Traps Triggered . | . . . . . . Indirectly . | . . . . . . Trap Hack Attempts . | . . . . . . Triggered . | . . . . . . Disarmed . | . . . . . . Reprogrammed . | . . . . . . Reused . | . . . . . . Traps Extracted . | . . . . . . Installed . | . . . . . . Triggered . | . . . . . . Machines | -11 -10 -9 -9 -8 -7 ---------- Run | Yrd Mat Mat Min Mat Fac Machines Disabled 5 | . 1 . 1 . 3 Max in Single Turn 2 | . 1 . 1 . 2 Machines Repaired . | . . . . . . Machines Dismantled . | . . . . . . Machines Sabotaged . | . . . . . . Overloaded Fab Kills . | . . . . . . Hacking | -11 -10 -9 -9 -8 -7 --------- Run | Yrd Mat Mat Min Mat Fac Machines Accessed 9 | . 3 1 . 3 2 Terminals 6 | . 2 1 . 2 1 Fabricators . | . . . . . . Repair Stations 1 | . . . . . 1 Recycling Units 1 | . 1 . . . . Scanalyzers 1 | . . . . 1 . Garrison Access . | . . . . . . Total Hacks 22 | . 9 2 . 8 3 Successful 20 | . 8 1 . 8 3 Failed 2 | . 1 1 . . . Catastrophic . | . . . . . . Database Lockouts . | . . . . . . Manual 2 | . 2 . . . . Terminals 12 | . 5 2 . 4 1 Fabricators . | . . . . . . Repair Stations 2 | . . . . . 2 Recycling Units 4 | . 4 . . . . Scanalyzers 4 | . . . . 4 . Garrison Access . | . . . . . . Terminal Hacks 10 | . 4 1 . 4 1 Record 3 | . 1 . . 2 . Open DSF 1 | . . . . . 1 Alert Level 4 | . 1 1 . 2 . Locate Traps 1 | . 1 . . . . Zone Layout 1 | . 1 . . . . Fabricator Hacks . | . . . . . . Repair Station Hacks 2 | . . . . . 2 Scan Component 1 | . . . . . 1 Repair 1 | . . . . . 1 Recycling Unit Hacks 4 | . 4 . . . . Recycle Component 1 | . 1 . . . . Process 1 | . 1 . . . . Retrieve Matter 1 | . 1 . . . . Retrieve Components 1 | . 1 . . . . Scanalyzer 4 | . . . . 4 . Insert Component 2 | . . . . 2 . Analyze 2 | . . . . 2 . Garrison Access Hacks . | . . . . . . Unauthorized Hacks . | . . . . . . Terminals . | . . . . . . Fabricators . | . . . . . . Repair Stations . | . . . . . . Recycling Units . | . . . . . . Scanalyzers . | . . . . . . Garrison Access . | . . . . . . Data Cores Recovered 1 | . . 1 . . . Used . | . . . . . . Hacking Detections 6 | . 2 1 . 2 1 Full Trace Events . | . . . . . . Feedback Events . | . . . . . . Feedback Blocked . | . . . . . . Robot Schematics Acquired . | . . . . . . Robots Built . | . . . . . . Authchips . | . . . . . . Time . | . . . . . . Total Robot Build Rating . | . . . . . . Part Schematics Acquired 2 | . . . . 2 . Parts Built . | . . . . . . Authchips . | . . . . . . Time . | . . . . . . Total Part Build Rating . | . . . . . . Parts Repaired 1 | . . . . . 1 Time 22 | . . . . . 22 Parts Recycled 1 | . 1 . . . . Recycled Matter 37 | . 37 . . . . Retrieved Matter 37 | . 37 . . . . Retrieved Components . | . . . . . . Parts Scanalyzed 2 | . . . . 2 . Part Schematics Acquired 2 | . . . . 2 . Parts Damaged . | . . . . . . Bothacking | -11 -10 -9 -9 -8 -7 ------------ Run | Yrd Mat Mat Min Mat Fac Used RIF Installer . | . . . . . . Robots Hacked 1 | . . 1 . . . Non-combat 1 | . . 1 . . . Combat . | . . . . . . Robot Hacks Applied 2 | . . 2 . . . parse_system 1 | . . 1 . . . no_distress 1 | . . 1 . . . Relay Couplers Released . | . . . . . . Fabnet Peak Effective % . | . . . . . . Robots Rewired . | . . . . . . Allies Hacked . | . . . . . . Hacks Repelled . | . . . . . . Allies | -11 -10 -9 -9 -8 -7 -------- Run | Yrd Mat Mat Min Mat Fac Total Allies . | . . . . . . Largest Group . | . . . . . . Highest-Rated Group . | . . . . . . Highest-Rated Ally . | . . . . . . Total Orders . | . . . . . . Ally Attacks . | . . . . . . Total Damage . | . . . . . . Kills . | . . . . . . Allies Corrupted . | . . . . . . Allies Melted . | . . . . . . Intel | -11 -10 -9 -9 -8 -7 ------- Run | Yrd Mat Mat Min Mat Fac Robot Analysis Total . | . . . . . . Derelict Logs Recovered 1 | . . . 1 . . Drone Launches . | . . . . . . Drone Recoveries . | . . . . . . Exploration | -11 -10 -9 -9 -8 -7 ------------- Run | Yrd Mat Mat Min Mat Fac Turns Passed 2665 | 159 272 433 372 342 1087 Spaces Moved 1510 | 98 185 174 262 167 624 Core 11 | 10 . . . . 1 Treads . | . . . . . . Legs 1066 | 88 185 174 262 167 190 Wheels . | . . . . . . Hover 433 | . . . . . 433 Flight . | . . . . . . Fastest Speed 45 | 50 120 120 120 120 45 Average Speed 118 | 112 120 120 120 149 110 Slowest Speed 190 | 120 120 120 120 190 190 Overloaded Moves . | . . . . . . Propulsion Burnouts . | . . . . . . Robots Hopped . | . . . . . . Cave-ins Triggered . | . . . . . . Exploration Rate (%) 19 | 4 28 16 36 18 13 Regions Visited 5 Branch Regions 1 Pre-discovered Areas . | . . . . . . Known Exits Taken 3 | . . 1 1 1 . Unknown Exits Taken 2 | 1 1 . . . . Scrap Searched . | . . . . . . Spaces Dug . | . . . . . . Terrain Destroyed 54 | . . . 14 . 40 Melee . | . . . . . . Projectile . | . . . . . . AOE 54 | . . . 14 . 40 Terrain Rammed . | . . . . . . Walls Destroyed . | . . . . . . Machines Disabled . | . . . . . . Actions | -11 -10 -9 -9 -8 -7 --------- Run | Yrd Mat Mat Min Mat Fac Total 2304 | 133 229 393 293 251 1005 Wait 627 | 4 36 197 3 70 317 Move 1505 | 97 184 173 261 166 624 Hop . | . . . . . . Pick Up 39 | 10 4 7 1 4 13 Fast Attach . | . . . . . . Attach 21 | 7 . 2 . 4 8 Detach 3 | . . . . . 3 Swap 16 | . 1 4 1 2 8 Drop 18 | 1 1 4 1 1 10 Fire 69 | 14 3 1 26 4 21 Melee 5 | . . 5 . . . Ram 1 | . . . . . 1 Kick . | . . . . . . Crush . | . . . . . . Escape Stasis . | . . . . . . Rewire . | . . . . . . Trap . | . . . . . . Miscellaneous . | . . . . . . Route ------- -11/Scrapyard -10/Materials -9/Materials -9/Mines (discovered 2 exits: *Mat x2) -8/Materials (discovered 2 exits: *Fac x2) -7/Factory History --------- Turn | Location | Event 8 | -11/Scrapyard | Discovered new exit (range 15) 160 | -11/Scrapyard | Entered Materials 311 | -10/Materials | Build established: Mutant 387 | -10/Materials | Discovered new exit (range 8) 432 | -10/Materials | Entered another Materials area 432 | -9/Materials | Evolved 2 slots: Utility x2 775 | -9/Materials | Discovered new exit (range 8) 863 | -9/Materials | Identified exit to Mines 865 | -9/Materials | Entered Mines 899 | -9/Mines | Met a Derelict bent on vengeance 903 | -9/Mines | Learned location of 1 exit from Materials 935 | -9/Mines | Discovered new exit (range 8) 1003 | -9/Mines | Identified exit to Materials 1009 | -9/Mines | Discovered exit to Materials (range 6) 1237 | -9/Mines | Entered Materials 1237 | -8/Materials | Evolved 2 slots: Utility x2 1238 | -8/Materials | Identified exit to Factory 1448 | -8/Materials | Met 7R-MNS 1551 | -8/Materials | Discovered exit to Factory (range 16) 1579 | -8/Materials | Entered Factory 1579 | -7/Factory | Evolved 2 slots: Propulsion x2 1580 | -7/Factory | Caught up to 7R-MNS 1629 | -7/Factory | Garrison activated, responded to threat 1844 | -7/Factory | Build established: Scavenger-Mutant 2271 | -7/Factory | Repaired Gravmag System 2314 | -7/Factory | Build established: Hacker-Mutant 2447 | -7/Factory | Garrison activated, responded to threat 2570 | -7/Factory | Lost 5 parts (1p2n1u1w) 2636 | -7/Factory | Core integrity fell below 50% 2658 | -7/Factory | Core integrity fell below 20% 2666 | -7/Factory | Destroyed by H-55 Commando with Assault Rifle Last Messages --------------- System corrupted: Component data lost. Connecting with Recycling Unit... Penetrated by Slug. Imp. Airjet destroyed. Spread Laser destroyed. Critical hit (Burn: +37). Slug penetrates Wall. M-13 Machinist repairs Shock Rifle. M-13 Machinist repairs Gravmag System. M-13 Machinist repairs Imp. Heat Sink. Slug penetrates G-47 Trooper. Subcomponent Replicator disabled. Imp. Airjet destroyed. System corrupted: Heat flow error (+233). Hacking Suite destroyed. Slug penetrates Wall. Wall collapses. Weight Redist. System destroyed. P-60 Hacker destroyed. Penetrated by Slug. Map ----- +----------------------------------------------------+ | !! #???# ###########/##????????????????? | | !! #???# # # #??######?????????? | | ! #???# #? # #? #?????????? | | ##### #??? # #? #?????????? | | ########+#T ## #????? # # [ #?????????? | | ##+#####+## # #?????????? | | + ! ! #?????????? | | ##################?????????? | | #???# #?????????? | | #???# """ """ #?????????? | | #+##### #???# """ """ #?????????? | | ??# ##### """ """ #?????????? | | ]]]# # #?????????? | | ]] # # """ """ #?????????? | | ]] # ^ + """ """ #?????????? | | # """" """" """" # ] """ """ #?????????? | | " "" # """" """" """" # #?????????? | | "R"" # """" """" """" # #?????????? | | """ # """" """" """" # #?????????? | | + ""?? """" """" # #?????????? | | #?###?? """" """" """" ##############?????????? | | ??????? h ####???????????????????? | | ??????? +???????????????????? | | ???????####??#########/#;g####???????????????????? | | ????????????????????# Ym #???????????????????? | | ????????????????????# u @"" #???????????????????? | | ????????????????????# """" #???????????????????? | | ????????????????????#! """"" #???????????????????? | | ????????????????????# #???????????????????? | | ????????????????????# "" #???????????????????? | | ????????????????????# "Y [#???????????????????? | | ????????????????????# "" #???????????????????? | | ????????????????????# ] #???????????????????? | | ????????????????????##########???????????????????? | | ?????????????????????????????????????????????????? | | ?????????????????????????????????????????????????? | | ?????????????????????????????????????????????????? | | ?????????????????????????????????????????????????? | | ?????????????????????????????????????????????????? | | ?????????????????????????????????????????????????? | | ?????????????????????????????????????????????????? | | ?????????????????????????????????????????????????? | | ?????????????????????????????????????????????????? | | ?????????????????????????????????????????????????? | | ?????????????????????????????????????????????????? | | ?????????????????????????????????????????????????? | | ?????????????????????????????????????????????????? | | | | | | | +----------------------------------------------------+ Best States ------------- Heat Dissipation 44 Energy Generation 16 Energy Capacity 290 Matter Stores 300 Matter Capacity 300 Sight Range 16 Terrain Scan Range 16 Terrain Scan Density 110 Additional Mass Support 6 Armor Coverage 225 Resistance: KI 50 Resistance: TH 20 Resistance: EX 20 Resistance: EM 20 Resistance: I 20 Resistance: S 20 Resistance: P 20 Propulsion Shielding 33 Evasion (%) 56 Offensive Hacking 20 Item Schematics ----------------- Lgt. Ion Engine | -8/Materials | Scanalyzed Hacking Suite | -8/Materials | Scanalyzed Robot Schematics ------------------ None Fabricated ------------ Nothing Alien Tech Used ----------------- None Achievements -------------- Made in Tau Ceti IV Part-time Mechanic Power Corrupts Risk Taker Challenges ------------ None Game ------ Seed ActuatorCoreLance Manual? 0 Play Time 00:49:07 Cumulative 3.7 hours Start 2024.04.04 @ 16:06:25 End 2024.04.04 @ 17:02:07 Sessions 1 Manual Loads 0 Difficulty Adventurer Special Mode None Game No. 4 Rogue 0 Adventurer 4 Explorer 0 Win Type - Total 0 Types 0/0/0/0/0/0/0/0/0 Lore% 3 Gallery% 6 Achievement% 6 Wizard Run 0 Options --------- Layout 1 ASCII 0 Keyboard 0 Movement Mouse Keybinds 0 Fullscreen 2 Font 24/Terminus Map View 50x35 Zoom Use 0% Tactical HUD 0 Map Filters NONE Filters NONE Steam 1 RUN: a040d74f-7b22-4f02-8b79-50e8a0a160ee